fUSD/lending_fUSD_20241219
["ID","MTS","AMOUNT","RATE_DAILY","PERIOD"]
[345977585,1734593432429,-153.0,0.00021181,2]
[345977587,1734593432438,-153.0,0.00021181,2]
[345977588,1734593432448,-500.62,0.00021216,2]
[345977589,1734593432458,-504.73,0.00021216,2]
[345977590,1734593432467,-20988.11649488,0.00021294,2]
[345977591,1734593432476,-460.0,0.000213,2]
[345977592,1734593432485,-862.27448018,0.00021324,2]
[345977593,1734593432495,-507.71,0.0002135,2]
[345977594,1734593432504,-5000.0,0.0002157,2]
[345977595,1734593432514,-156.25,0.00021669,2]
[345977596,1734593432523,-500.0,0.0002167,2]
[345977597,1734593432534,-500.0,0.0002167,2]
[345977598,1734593432543,-500.0,0.0002167,2]
[345977599,1734593432552,-500.0,0.0002167,2]
[345977600,1734593432562,-500.0,0.0002167,2]
[345977601,1734593432571,-500.0,0.0002167,2]
[345977602,1734593432581,-500.0,0.0002167,2]
[345977603,1734593432590,-500.0,0.0002167,2]
[345977604,1734593432600,-500.0,0.0002167,2]
[345977605,1734593432609,-500.0,0.0002167,2]
[345977606,1734593432619,-500.0,0.0002167,2]
[345977607,1734593432629,-500.0,0.0002167,2]
[345977608,1734593432638,-500.0,0.0002167,2]
[345977609,1734593432648,-500.0,0.0002167,2]
[345977610,1734593432657,-500.0,0.0002167,2]
[345977611,1734593432666,-500.0,0.0002167,2]
[345977612,1734593432675,-500.0,0.0002167,2]
[345977613,1734593432685,-500.0,0.0002167,2]
[345977614,1734593432694,-500.0,0.0002167,2]
[345977615,1734593432703,-500.0,0.0002167,2]
[345977616,1734593432712,-500.0,0.0002167,2]
[345977617,1734593432722,-500.0,0.0002167,2]
[345977618,1734593432731,-500.0,0.0002167,2]
[345977619,1734593432741,-500.0,0.0002167,2]
[345977620,1734593432750,-500.0,0.0002167,2]
[345977621,1734593432760,-500.0,0.0002167,2]
[345977622,1734593432769,-500.0,0.0002167,2]
[345977623,1734593432781,-500.0,0.0002167,2]
[345977624,1734593432790,-500.0,0.0002167,2]
[345977625,1734593432799,-500.0,0.0002167,2]
[345977626,1734593432808,-500.0,0.0002167,2]
[345977627,1734593432821,-500.0,0.0002167,2]
[345977628,1734593432830,-500.0,0.0002167,2]
[345977629,1734593432840,-500.0,0.0002167,2]
[345977630,1734593432849,-500.0,0.0002167,2]
[345977631,1734593432859,-500.0,0.0002167,2]
[345977632,1734593432868,-500.0,0.0002167,2]
[345977633,1734593432877,-500.0,0.0002167,2]
[345977634,1734593432887,-500.0,0.0002167,2]
[345977635,1734593432896,-500.0,0.0002167,2]
[345977636,1734593432906,-500.0,0.0002167,2]
[345977637,1734593432915,-500.0,0.0002167,2]
[345977638,1734593432923,-500.0,0.0002167,2]
[345977639,1734593432932,-500.0,0.0002167,2]
[345977640,1734593432941,-500.0,0.0002167,2]
[345977641,1734593432950,-500.0,0.0002167,2]
[345977642,1734593432959,-500.0,0.0002167,2]
[345977643,1734593432968,-500.0,0.0002167,2]
[345977644,1734593432977,-500.0,0.0002167,2]
[345977645,1734593432986,-500.0,0.0002167,2]
[345977646,1734593432995,-500.0,0.0002167,2]
[345977647,1734593433003,-500.0,0.0002167,2]
[345977648,1734593433012,-500.0,0.0002167,2]
[345977649,1734593433021,-500.0,0.0002167,2]
[345977650,1734593433032,-500.0,0.0002167,2]
[345977651,1734593433041,-500.0,0.0002167,2]
[345977652,1734593433051,-500.0,0.0002167,2]
[345977653,1734593433060,-500.0,0.0002167,2]
[345977654,1734593433070,-500.0,0.0002167,2]
[345977655,1734593433079,-500.0,0.0002167,2]
[345977656,1734593433089,-500.0,0.0002167,2]
[345977657,1734593433098,-500.0,0.0002167,2]
[345977658,1734593433107,-500.0,0.0002167,2]
[345977659,1734593433117,-500.0,0.0002167,2]
[345977660,1734593433126,-500.0,0.0002167,2]
[345977661,1734593433135,-500.0,0.0002167,2]
[345977662,1734593433145,-500.0,0.0002167,2]
[345977663,1734593433154,-500.0,0.0002167,2]
[345977664,1734593433163,-500.0,0.0002167,2]
[345977665,1734593433172,-500.0,0.0002167,2]
[345977666,1734593433181,-500.0,0.0002167,2]
[345977667,1734593433190,-500.0,0.0002167,2]
[345977668,1734593433199,-500.0,0.0002167,2]
[345977669,1734593433209,-500.0,0.0002167,2]
[345977670,1734593433218,-500.0,0.0002167,2]
[345977671,1734593433227,-500.0,0.0002167,2]
[345977672,1734593433236,-500.0,0.0002167,2]
[345977673,1734593433245,-500.0,0.0002167,2]
[345977674,1734593433255,-500.0,0.0002167,2]
[345977675,1734593433263,-500.0,0.0002167,2]
[345977676,1734593433273,-500.0,0.0002167,2]
[345977677,1734593433286,-500.0,0.0002167,2]
[345977678,1734593433295,-500.0,0.0002167,2]
[345977679,1734593433304,-500.0,0.0002167,2]
[345977680,1734593433313,-500.0,0.0002167,2]
[345977681,1734593433322,-500.0,0.0002167,2]
[345977682,1734593433331,-500.0,0.0002167,2]
[345977683,1734593433341,-500.0,0.0002167,2]
[345977684,1734593433350,-500.0,0.0002167,2]
[345977685,1734593433359,-500.0,0.0002167,2]
[345977686,1734593433369,-500.0,0.0002167,2]
[345977687,1734593433378,-500.0,0.0002167,2]
[345977688,1734593433387,-500.0,0.0002167,2]
[345977689,1734593433396,-500.0,0.0002167,2]
[345977690,1734593433406,-500.0,0.0002167,2]
[345977691,1734593433415,-500.0,0.0002167,2]
[345977692,1734593433424,-500.0,0.0002167,2]
[345977693,1734593433435,-500.0,0.0002167,2]
[345977694,1734593433445,-500.0,0.0002167,2]
[345977695,1734593433454,-500.0,0.0002167,2]
[345977696,1734593433463,-500.0,0.0002167,2]
[345977697,1734593433473,-500.0,0.0002167,2]
[345977698,1734593433482,-500.0,0.0002167,2]
[345977699,1734593433491,-500.0,0.0002167,2]
[345977700,1734593433500,-500.0,0.0002167,2]
[345977701,1734593433509,-500.0,0.0002167,2]
[345977702,1734593433518,-500.0,0.0002167,2]
[345977703,1734593433530,-500.0,0.0002167,2]
[345977704,1734593433539,-20988.11649488,0.00021688,2]
[345977705,1734593433549,-862.27448018,0.00021708,2]
[345977706,1734593433557,-420.0,0.00021777,2]
[345977707,1734593433567,-504.52,0.0002179,2]
[345977708,1734593433577,-498.57,0.0002179,2]
[345977709,1734593433586,-699.29,0.00021817,2]
[345977710,1734593433596,-154.97,0.00021849,2]
[345977711,1734593433605,-151.0,0.00021907,2]
[345977712,1734593433615,-946.0,0.00021917,2]
[345977713,1734593433625,-501.74939505,0.00021917,4]
[345977714,1734593433634,-502.39187716,0.00021917,4]
[345977715,1734593433643,-502.03150461,0.00021917,4]
[345977716,1734593433653,-502.50685712,0.00021917,4]
[345977717,1734593433662,-500.0,0.00021917,4]
[345977718,1734593433671,-501.20787867,0.00021917,4]
[345977719,1734593433681,-500.0,0.00021917,4]
[345977720,1734593433690,-191.67171834,0.00021917,4]
[345977721,1734593433700,-189.920817,0.00021917,4]
[345977722,1734593433709,-1849.059693,0.00021917,4]
[345977723,1734593433719,-400.64273924,0.00021917,4]
[345977724,1734593433728,-1116.351943,0.00021917,4]
[345977725,1734593433738,-500.0,0.00021917,4]
[345977726,1734593433748,-505.75914912,0.00021917,4]
[345977727,1734593433758,-500.0,0.00021917,4]
[345977728,1734593433768,-500.0,0.00021917,4]
[345977729,1734593433781,-500.0,0.00021917,4]
[345977730,1734593433791,-505.72222424,0.00021917,4]
[345977731,1734593433800,-500.0,0.00021917,4]
[345977732,1734593433810,-500.0,0.00021917,4]
[345977733,1734593433822,-502.69206894,0.00021917,4]
[345977734,1734593433831,-500.0,0.00021917,4]
[345977735,1734593433840,-508.60513053,0.00021917,4]
[345977736,1734593433851,-154.69,0.00021917,2]
[345977737,1734593433860,-507.38006002,0.00021917,4]
[345977738,1734593433870,-500.0,0.00021917,4]
[345977739,1734593433879,-512.65710222,0.00021917,4]
[345977740,1734593433889,-154.14509996,0.00021917,4]
[345977741,1734593433898,-500.0,0.00021917,4]
[345977742,1734593433908,-509.37380298,0.00021917,4]
[345977743,1734593433918,-500.0,0.00021917,4]
[345977744,1734593433927,-507.06986069,0.00021917,4]
[345977745,1734593433936,-510.6930561,0.00021917,4]
[345977746,1734593433946,-506.93603139,0.00021917,4]
[345977747,1734593433955,-503.91052173,0.00021917,4]
[345977748,1734593433964,-500.0,0.00021917,4]
[345977749,1734593433973,-507.41645861,0.00021917,4]
[345977750,1734593433982,-514.61133343,0.00021917,4]
[345977751,1734593433993,-500.0,0.00021917,4]
[345977752,1734593434002,-333.85362242,0.00021917,4]
[345977753,1734593434012,-500.0,0.00021917,4]
[345977754,1734593434021,-527.66587826,0.00021917,4]
[345977755,1734593434033,-500.0,0.00021917,4]
[345977756,1734593434230,-500.0,0.00021917,4]
[345977757,1734593434240,-508.87035279,0.00021917,4]
[345977758,1734593434250,-500.0,0.00021917,4]
[345977759,1734593434259,-507.97207725,0.00021917,4]
[345977760,1734593434269,-300.0,0.00021917,4]
[345977761,1734593434279,-504.6308568,0.00021917,4]
[345977762,1734593434288,-500.0,0.00021917,4]
[345977763,1734593434297,-495.0,0.00021917,4]
[345977764,1734593434307,-500.0,0.00021917,4]
[345977765,1734593434316,-500.0,0.00021917,4]
[345977766,1734593434326,-515.0258812,0.00021917,4]
[345977767,1734593434336,-503.34642382,0.00021917,4]
[345977768,1734593434345,-500.0,0.00021917,4]
[345977769,1734593434355,-500.0,0.00021917,4]
[345977770,1734593434364,-510.69786126,0.00021917,4]
[345977771,1734593434373,-30.72437914,0.00021917,4]
[345977772,1734593434623,-473.64151674,0.00021917,4]
[345977773,1734593434633,-500.0,0.00021917,4]
[345977774,1734593434642,-500.0,0.00021917,4]
[345977775,1734593434651,-500.0,0.00021917,4]
[345977776,1734593434661,-180.77164436,0.00021917,4]
[345977777,1734593434671,-500.0,0.00021917,4]
[345977778,1734593434681,-500.0,0.00021917,4]
[345977779,1734593434690,-500.0,0.00021917,4]
[345977780,1734593434699,-500.0,0.00021917,4]
[345977781,1734593434708,-500.0,0.00021917,4]
[345977782,1734593434718,-501.21720365,0.00021917,4]
[345977783,1734593434728,-500.0,0.00021917,4]
[345977784,1734593434737,-494.41522769,0.00021917,4]
[345977785,1734593434747,-500.0,0.00021917,4]
[345977786,1734593434756,-364.98376916,0.00021917,4]
[345977787,1734593434767,-500.0,0.00021917,4]
[345977788,1734593434778,-503.67450458,0.00021917,4]
[345977789,1734593434787,-500.0,0.00021917,4]
[345977790,1734593434797,-500.0,0.00021917,4]
[345977791,1734593434806,-241.9865646,0.00021917,4]
[345977792,1734593434819,-503.67337275,0.00021917,4]
[345977793,1734593434828,-504.95223085,0.00021917,4]
[345977794,1734593434837,-504.60889696,0.00021917,4]
[345977795,1734593434847,-503.16164816,0.00021917,4]
[345977796,1734593434858,-521.31872032,0.00021917,4]
[345977797,1734593434867,-500.0,0.00021917,4]
[345977798,1734593434877,-500.0,0.00021917,4]
[345977799,1734593434887,-500.0,0.00021917,4]
[345977800,1734593434896,-504.42361709,0.00021917,4]
[345977801,1734593434906,-540.43409575,0.00021917,4]
[345977802,1734593434916,-500.0,0.00021917,4]
[345977803,1734593434925,-500.0,0.00021917,4]
[345977804,1734593434934,-500.0,0.00021917,4]
[345977805,1734593434944,-501.18964976,0.00021917,4]
[345977806,1734593434953,-505.29777747,0.00021917,4]
[345977807,1734593434963,-505.60186212,0.00021917,4]
[345977808,1734593434972,-500.0,0.00021917,4]
[345977809,1734593434981,-500.0,0.00021917,4]
[345977810,1734593434990,-235.15223855,0.00021917,4]
[345977811,1734593434999,-507.30139936,0.00021917,4]
[345977812,1734593435008,-500.34327184,0.00021917,4]
[345977813,1734593435018,-503.46595227,0.00021917,4]
[345977814,1734593435027,-166.38483597,0.00021917,4]
[345977815,1734593435047,-345.69640352,0.00021917,4]
[345977816,1734593435057,-503.10691826,0.00021917,4]
[345977817,1734593435067,-267.46257723,0.00021917,4]
[345977818,1734593435076,-500.0,0.00021917,4]
[345977819,1734593435086,-641.06,0.00021917,4]
[345977820,1734593435096,-502.03674464,0.00021917,4]
[345977821,1734593435105,-515.38041521,0.00021917,4]
[345977822,1734593435115,-500.0,0.00021917,4]
[345977823,1734593435124,-503.17321344,0.00021917,4]
[345977824,1734593435134,-500.0,0.00021917,4]
[345977825,1734593435143,-500.0,0.00021917,4]
[345977826,1734593435153,-500.0,0.00021917,4]
[345977827,1734593435162,-500.0,0.00021917,4]
[345977828,1734593435172,-534.54832402,0.00021917,4]
[345977829,1734593435181,-500.0,0.00021917,4]
[345977830,1734593435191,-500.0,0.00021917,4]
[345977831,1734593435200,-500.0,0.00021917,4]
[345977832,1734593435210,-544.09660097,0.00021917,4]
[345977833,1734593435219,-508.35649299,0.00021917,4]
[345977834,1734593435228,-500.0,0.00021917,4]
[345977835,1734593435238,-500.0,0.00021917,4]
[345977836,1734593435247,-500.0,0.00021917,4]
[345977837,1734593435256,-515.63587209,0.00021917,4]
[345977838,1734593435266,-503.24852001,0.00021917,4]
[345977839,1734593435275,-507.24821785,0.00021917,4]
[345977840,1734593435287,-502.33008941,0.00021917,4]
[345977841,1734593435297,-502.39708897,0.00021917,4]
[345977842,1734593435307,-513.70023237,0.00021917,4]
[345977843,1734593435316,-500.0,0.00021917,4]
[345977844,1734593435326,-150.96897409,0.00021917,4]
[345977845,1734593435335,-500.0,0.00021917,4]
[345977846,1734593435344,-500.0,0.00021917,4]
[345977847,1734593435353,-503.40014911,0.00021917,4]
[345977848,1734593435362,-503.51822041,0.00021917,4]
[345977849,1734593435371,-500.0,0.00021917,4]
[345977850,1734593435380,-500.98301814,0.00021917,4]
[345977851,1734593435389,-502.59869591,0.00021917,4]
[345977852,1734593435399,-5013.29304805,0.00021917,4]
[345977853,1734593435408,-500.0,0.00021917,4]
[345977854,1734593435418,-504.45293082,0.00021917,4]
[345977855,1734593435429,-500.0,0.00021917,4]
[345977856,1734593435440,-500.0,0.00021917,4]
[345977857,1734593435450,-506.01746379,0.00021917,4]
[345977858,1734593435459,-500.0,0.00021917,4]
[345977859,1734593435468,-502.11420821,0.00021917,4]
[345977860,1734593435478,-501.39096184,0.00021917,4]
[345977861,1734593435488,-500.80523535,0.00021917,4]
[345977862,1734593435498,-500.0,0.00021917,4]
[345977863,1734593435507,-500.0,0.00021917,4]
[345977864,1734593435517,-501.14310336,0.00021917,4]
[345977865,1734593435527,-501.15034495,0.00021917,4]
[345977866,1734593435537,-500.0,0.00021917,4]
[345977867,1734593435546,-500.0,0.00021917,4]
[345977868,1734593435555,-500.0,0.00021917,4]
[345977869,1734593435564,-500.0,0.00021917,4]
[345977870,1734593435573,-506.04920754,0.00021917,4]
[345977871,1734593435583,-500.0,0.00021917,4]
[345977872,1734593435592,-500.0,0.00021917,4]
[345977873,1734593435601,-500.0,0.00021917,4]
[345977874,1734593435611,-503.67718528,0.00021917,4]
[345977875,1734593435621,-500.0,0.00021917,4]
[345977876,1734593435630,-500.0,0.00021917,4]
[345977877,1734593435639,-500.0,0.00021917,4]
[345977878,1734593435649,-500.0,0.00021917,4]
[345977879,1734593435659,-500.0,0.00021917,4]
[345977880,1734593435668,-500.0,0.00021917,4]
[345977881,1734593435677,-500.0,0.00021917,4]
[345977882,1734593435686,-500.0,0.00021917,4]
[345977883,1734593435696,-504.96537851,0.00021917,4]
[345977884,1734593435705,-500.0,0.00021917,4]
[345977885,1734593435715,-500.0,0.00021917,4]
[345977886,1734593435725,-505.81704501,0.00021917,4]
[345977887,1734593435735,-500.0,0.00021917,4]
[345977888,1734593435743,-608.2769009,0.00021917,4]
[345977889,1734593435753,-500.0,0.00021917,4]
[345977890,1734593435762,-505.49598768,0.00021917,4]
[345977891,1734593435771,-500.0,0.00021917,4]
[345977892,1734593435782,-500.0,0.00021917,4]
[345977893,1734593435792,-506.67766866,0.00021917,4]
[345977894,1734593435801,-498.86855581,0.00021917,4]
[345977895,1734593435811,-500.0,0.00021917,4]
[345977896,1734593435824,-500.0,0.00021917,4]
[345977897,1734593435833,-500.0,0.00021917,4]
[345977898,1734593435842,-504.00851505,0.00021917,4]
[345977899,1734593435851,-500.0,0.00021917,4]
[345977900,1734593435860,-500.0,0.00021917,4]
[345977901,1734593435869,-507.33297645,0.00021917,4]
[345977902,1734593435879,-500.0,0.00021917,4]
[345977903,1734593435888,-500.0,0.00021917,4]
[345977904,1734593435899,-500.0,0.00021917,4]
[345977905,1734593435908,-506.37252585,0.00021917,4]
[345977906,1734593435917,-500.0,0.00021917,4]
[345977907,1734593435926,-507.3522636,0.00021917,4]
[345977908,1734593435935,-500.0,0.00021917,4]
[345977909,1734593435945,-500.0,0.00021917,4]
[345977910,1734593435954,-537.26370517,0.00021917,4]
[345977911,1734593435963,-501.77048105,0.00021917,4]
[345977912,1734593435972,-501.2694544,0.00021917,4]
[345977913,1734593435981,-500.0,0.00021917,4]
[345977914,1734593435990,-501.72556669,0.00021917,4]
[345977915,1734593435999,-500.0,0.00021917,4]
[345977916,1734593436008,-512.09810805,0.00021917,4]
[345977917,1734593436017,-500.0,0.00021917,4]
[345977918,1734593436028,-500.0,0.00021917,4]
[345977919,1734593436037,-209.68873653,0.00021917,4]
[345977922,1734593437829,-306.58175874,0.00021917,4]
[345977923,1734593437839,-500.0,0.00021917,4]
[345977924,1734593437848,-206.41824126,0.00021917,4]
[345977925,1734593437860,-295.97054054,0.00021917,4]
[345977926,1734593437871,-502.52106702,0.00021917,4]
[345977927,1734593437880,-500.0,0.00021917,4]
[345977928,1734593437890,-542.32738628,0.00021917,4]
[345977929,1734593437900,-503.19638587,0.00021917,4]
[345977930,1734593437909,-764.65,0.00021917,4]
[345977931,1734593437919,-500.0,0.00021917,4]
[345977932,1734593437927,-502.68180152,0.00021917,4]
[345977933,1734593437936,-500.0,0.00021917,4]
[345977934,1734593437946,-502.92931167,0.00021917,4]
[345977935,1734593437955,-508.29765041,0.00021917,4]
[345977936,1734593437965,-500.0,0.00021917,4]
[345977937,1734593437974,-503.30692659,0.00021917,4]
[345977938,1734593437983,-502.06988925,0.00021917,4]
[345977939,1734593437992,-591.8878696,0.00021917,4]
[345977940,1734593438002,-500.0,0.00021917,4]
[345977941,1734593438011,-500.0,0.00021917,4]
[345977942,1734593438020,-500.0,0.00021917,4]
[345977943,1734593438029,-610.09,0.00021917,4]
[345977944,1734593438038,-500.0,0.00021917,4]
[345977945,1734593438047,-500.0,0.00021917,4]
[345977946,1734593438056,-500.0,0.00021917,4]
[345977947,1734593438065,-500.0,0.00021917,4]
[345977948,1734593438074,-503.39331634,0.00021917,4]
[345977949,1734593438083,-152.068052,0.00021917,2]
[345977950,1734593438093,-504.07117342,0.00021917,4]
[345977951,1734593438102,-509.12776504,0.00021917,4]
[345977952,1734593438111,-500.0,0.00021917,4]
[345977953,1734593438120,-322.80534008,0.00021917,4]
[345977954,1734593438249,-177.19465992,0.00021917,4]
[345977955,1734593438261,-502.85774494,0.00021917,4]
[345977956,1734593438270,-500.0,0.00021917,4]
[345977957,1734593438280,-500.0,0.00021917,4]
[345977958,1734593438298,-500.0,0.00021917,4]
[345977959,1734593438307,-500.0,0.00021917,4]
[345977960,1734593438317,-500.0,0.00021917,4]
[345977961,1734593438326,-500.0,0.00021917,4]
[345977962,1734593438336,-500.0,0.00021917,4]
[345977963,1734593438345,-500.0,0.00021917,4]
[345977964,1734593438354,-307.89055514,0.00021917,4]
[345977979,1734593440313,-200.55767374,0.00021917,4]
[345977980,1734593440322,-268.49170202,0.00021917,4]
[345977981,1734593440334,-231.50829798,0.00021917,4]
[345977982,1734593440343,-52.94057314,0.00021917,4]
[345978008,1734593443792,-447.05942686,0.00021917,4]
[345978009,1734593443803,-500.0,0.00021917,4]
[345978010,1734593443814,-296.46375152,0.00021917,4]
[345978014,1734593445785,-203.53624848,0.00021917,4]
[345978015,1734593445795,-635.34,0.00021917,4]
[345978016,1734593445804,-500.0,0.00021917,4]
[345978017,1734593445815,-500.0,0.00021917,4]
[345978018,1734593445825,-500.0,0.00021917,4]
[345978019,1734593445835,-500.0,0.00021917,4]
[345978020,1734593445844,-461.81498505,0.00021917,4]
[345978021,1734593445854,-500.0,0.00021917,4]
[345978022,1734593445865,-500.0,0.00021917,4]
[345978023,1734593445875,-500.0,0.00021917,4]
[345978024,1734593445884,-501.87861618,0.00021917,4]
[345978025,1734593445896,-503.22397074,0.00021917,4]
[345978026,1734593445906,-500.0,0.00021917,4]
[345978027,1734593445916,-500.0,0.00021917,4]
[345978028,1734593445926,-48.55635977,0.00021917,4]
[345978029,1734593446161,-453.95675433,0.00021917,4]
[345978030,1734593446171,-153.12679227,0.00021917,4]
[345978031,1734593446182,-304.7841093,0.00021917,4]
[345978032,1734593510611,-500.0,0.00021164,2]
[345978033,1734593510633,-177.68931317,0.00021816,2]
[345978034,1734593510654,-177.68931315,0.00021817,2]
[345978035,1734593510675,-344.03031502,0.00021817,2]
[345978036,1734593510698,-177.68931315,0.00021817,2]
[345978037,1734593510718,-11572.1427083,0.00021915,2]
[345978038,1734593510741,-300.0,0.00021916,2]
[345978039,1734593510761,-44.30614971,0.00021917,4]
[345978040,1734593510782,-500.0,0.00021917,4]
[345978041,1734593510802,-500.0,0.00021917,4]
[345978042,1734593510822,-500.0,0.00021917,4]
[345978043,1734593510850,-502.5694602,0.00021917,4]
[345978044,1734593510870,-354.08215988,0.00021917,4]
[345978045,1734593510891,-502.14163664,0.00021917,4]
[345978046,1734593510913,-504.41936183,0.00021917,4]
[345978047,1734593510939,-500.0,0.00021917,4]
[345978048,1734593510960,-500.0,0.00021917,4]
[345978049,1734593511185,-502.91089685,0.00021917,4]
[345978050,1734593511206,-505.02971355,0.00021917,4]
[345978051,1734593511227,-502.99144947,0.00021917,4]
[345978052,1734593511248,-500.0,0.00021917,4]
[345978053,1734593511269,-500.0,0.00021917,4]
[345978054,1734593511289,-500.0,0.00021917,4]
[345978055,1734593511310,-503.50877225,0.00021917,4]
[345978056,1734593511336,-504.0330762,0.00021917,4]
[345978057,1734593511357,-513.51658855,0.00021917,4]
[345978058,1734593511378,-500.0,0.00021917,4]
[345978059,1734593511399,-158.33056427,0.00021917,4]
[345978060,1734593511420,-500.0,0.00021917,4]
[345978061,1734593511442,-500.0,0.00021917,4]
[345978062,1734593511464,-500.0,0.00021917,4]
[345978063,1734593511486,-503.66813298,0.00021917,4]
[345978064,1734593511508,-500.0,0.00021917,4]
[345978065,1734593511529,-623.97478086,0.00021917,4]
[345978066,1734593511549,-500.0,0.00021917,4]
[345978067,1734593511571,-500.0,0.00021917,4]
[345978068,1734593511596,-503.57848465,0.00021917,4]
[345978069,1734593511618,-507.09087732,0.00021917,4]
[345978070,1734593511639,-500.0,0.00021917,4]
[345978071,1734593511660,-500.0,0.00021917,4]
[345978072,1734593511681,-500.0,0.00021917,4]
[345978073,1734593511701,-377.23946711,0.00021917,4]
[345978074,1734593511722,-500.0,0.00021917,4]
[345978075,1734593511743,-508.58492704,0.00021917,2]
[345978076,1734593511765,-500.0,0.00021917,4]
[345978077,1734593511787,-500.0,0.00021917,4]
[345978078,1734593511807,-500.0,0.00021917,4]
[345978079,1734593511828,-504.1545641,0.00021917,4]
[345978080,1734593511856,-501.68700384,0.00021917,4]
[345978081,1734593511879,-500.0,0.00021917,4]
[345978082,1734593511900,-500.0,0.00021917,4]
[345978083,1734593511922,-500.0,0.00021917,4]
[345978084,1734593511944,-500.0,0.00021917,4]
[345978085,1734593511964,-500.0,0.00021917,4]
[345978086,1734593511984,-536.07305283,0.00021917,4]
[345978087,1734593512005,-581.06,0.00021917,4]
[345978088,1734593512026,-500.0,0.00021917,4]
[345978089,1734593512048,-500.0,0.00021917,4]
[345978090,1734593512069,-152.697517,0.00021917,2]
[345978091,1734593512095,-500.0,0.00021917,4]
[345978092,1734593512115,-500.0,0.00021917,4]
[345978093,1734593512136,-500.0,0.00021917,4]
[345978094,1734593512157,-507.0101036,0.00021917,4]
[345978095,1734593512178,-500.0,0.00021917,4]
[345978096,1734593512199,-500.0,0.00021917,4]
[345978097,1734593512219,-500.0,0.00021917,4]
[345978098,1734593512240,-500.0,0.00021917,4]
[345978099,1734593512260,-500.0,0.00021917,4]
[345978100,1734593512281,-504.93150234,0.00021917,4]
[345978101,1734593512301,-500.0,0.00021917,4]
[345978102,1734593512322,-500.0,0.00021917,4]
[345978103,1734593512346,-510.24533238,0.00021917,4]
[345978104,1734593512366,-500.0,0.00021917,4]
[345978105,1734593512386,-501.08030602,0.00021917,4]
[345978106,1734593512406,-500.0,0.00021917,4]
[345978107,1734593512426,-183.097623,0.00021917,2]
[345978108,1734593512447,-500.0,0.00021917,4]
[345978109,1734593512469,-507.38166282,0.00021917,4]
[345978110,1734593512491,-504.6281195,0.00021917,4]
[345978111,1734593512510,-500.0,0.00021917,4]
[345978112,1734593512531,-265.35608345,0.00021917,4]
[345978113,1734593512550,-502.52692061,0.00021917,4]
[345978114,1734593512570,-500.0,0.00021917,4]
[345978115,1734593512596,-500.0,0.00021917,4]
[345978116,1734593512616,-153.618611,0.00021917,2]
[345978117,1734593512636,-500.0,0.00021917,4]
[345978118,1734593512658,-500.0,0.00021917,4]
[345978119,1734593512679,-504.54260435,0.00021917,4]
[345978120,1734593512701,-505.76678049,0.00021917,4]
[345978121,1734593512723,-500.0,0.00021917,4]
[345978122,1734593512744,-500.0,0.00021917,4]
[345978123,1734593512770,-500.0,0.00021917,4]
[345978124,1734593512792,-502.03533832,0.00021917,4]
[345978125,1734593512813,-264.13738737,0.00021917,4]
[345978126,1734593512838,-503.86089238,0.00021917,4]
[345978127,1734593512864,-500.0,0.00021917,4]
[345978128,1734593512886,-500.0,0.00021917,4]
[345978129,1734593512908,-500.0,0.00021917,4]